fUSD/lending_fUSD_20250504
["ID","MTS","AMOUNT","RATE_DAILY","PERIOD"]
[359794420,1746352243409,-450.0,0.00019726,2]
[359794421,1746352243418,-2603.81,0.00019726,2]
[359794422,1746352243428,-450.0,0.00019726,2]
[359794423,1746352243437,-492.71,0.00019726,2]
[359794424,1746352243446,-450.0,0.00019726,2]
[359794425,1746352243455,-500.0,0.00019726,2]
[359794426,1746352243464,-450.0,0.00019726,2]
[359794427,1746352243475,-450.0,0.00019726,2]
[359794428,1746352243484,-2031.50153385,0.00019726,2]
[359794429,1746352243494,-450.0,0.00019726,2]
[359794430,1746352243503,-450.0,0.00019726,2]
[359794431,1746352243512,-450.0,0.00019726,2]
[359794432,1746352243522,-876.95,0.00019726,2]
[359794433,1746352243531,-537.09,0.00019726,2]
[359794434,1746352243540,-450.0,0.00019726,2]
[359794435,1746352243549,-450.0,0.00019726,2]
[359794436,1746352243559,-450.0,0.00019726,2]
[359794437,1746352243568,-450.0,0.00019726,2]
[359794438,1746352243577,-450.0,0.00019726,2]
[359794439,1746352243587,-450.0,0.00019726,2]
[359794440,1746352243596,-1868.86,0.00019726,2]
[359794441,1746352243605,-450.0,0.00019726,2]
[359794442,1746352243615,-1134.1,0.00019726,2]
[359794443,1746352243624,-450.0,0.00019726,2]
[359794444,1746352243633,-45283.39,0.00019726,2]
[359794445,1746352243642,-450.0,0.00019726,2]
[359794446,1746352243652,-843.32,0.00019726,2]
[359794447,1746352243660,-450.0,0.00019726,2]
[359794448,1746352243670,-450.0,0.00019726,2]
[359794449,1746352243679,-450.0,0.00019726,2]
[359794450,1746352243688,-450.0,0.00019726,2]
[359794451,1746352243697,-615.0,0.00019726,2]
[359794452,1746352243706,-450.0,0.00019726,2]
[359794453,1746352243715,-450.0,0.00019726,2]
[359794454,1746352243725,-457.65,0.00019726,2]
[359794455,1746352243734,-450.0,0.00019726,2]
[359794456,1746352243743,-450.0,0.00019726,2]
[359794457,1746352243752,-500.0,0.00019726,2]
[359794458,1746352243761,-2417.98,0.00019726,2]
[359794459,1746352243770,-450.0,0.00019726,2]
[359794460,1746352243779,-450.0,0.00019726,2]
[359794461,1746352243788,-450.0,0.00019726,2]
[359794462,1746352243797,-450.0,0.00019726,2]
[359794463,1746352243807,-450.0,0.00019726,2]
[359794464,1746352243816,-234.66895371,0.00019726,2]
[359794465,1746352243825,-450.0,0.00019726,2]
[359794466,1746352243834,-450.0,0.00019726,2]
[359794467,1746352243843,-450.0,0.00019726,2]
[359794468,1746352243852,-516.09,0.00019726,2]
[359794469,1746352243862,-11423.65,0.00019726,2]
[359794470,1746352243871,-450.0,0.00019726,2]
[359794471,1746352243880,-603.29,0.00019726,2]
[359794472,1746352243889,-387.82959739,0.00019726,2]
[359794473,1746352243898,-544.71439111,0.00019726,2]
[359794474,1746352243908,-3131.26,0.00019726,2]
[359794475,1746352243917,-450.0,0.00019726,2]
[359794476,1746352243926,-450.0,0.00019726,2]
[359794477,1746352243935,-450.0,0.00019726,2]
[359794478,1746352243944,-450.0,0.00019726,2]
[359794479,1746352243953,-747.61,0.00019726,2]
[359794480,1746352243963,-484.95,0.00019726,2]
[359794481,1746352243975,-450.0,0.00019726,2]
[359794482,1746352243984,-500.0,0.00019726,2]
[359794483,1746352243994,-450.0,0.00019726,2]
[359794484,1746352244003,-450.0,0.00019726,2]
[359794485,1746352244013,-500.0,0.00019726,2]
[359794486,1746352244023,-532.32903879,0.00019726,2]
[359794487,1746352244032,-6307.22,0.00019726,2]
[359794488,1746352244042,-450.0,0.00019726,2]
[359794489,1746352244052,-450.0,0.00019726,2]
[359794490,1746352244062,-450.0,0.00019726,2]
[359794491,1746352244072,-450.0,0.00019726,2]
[359794493,1746352244081,-483.17,0.00019726,2]
[359794494,1746352244091,-745.62,0.00019726,2]
[359794496,1746352244101,-450.0,0.00019726,2]
[359794497,1746352244111,-450.0,0.00019726,2]
[359794498,1746352244121,-450.0,0.00019726,2]
[359794499,1746352244130,-450.0,0.00019726,2]
[359794502,1746352244140,-903.85,0.00019726,2]
[359794504,1746352244149,-386.57574309,0.00019726,2]
[359794506,1746352244158,-450.0,0.00019726,2]
[359794508,1746352244167,-450.0,0.00019726,2]
[359794509,1746352244177,-2540.47,0.00019726,2]
[359794510,1746352244186,-55372.95,0.00019726,2]
[359794511,1746352244196,-450.0,0.00019726,2]
[359794512,1746352244205,-500.0,0.00019726,2]
[359794513,1746352244215,-450.0,0.00019726,2]
[359794514,1746352244225,-450.0,0.00019726,2]
[359794515,1746352244234,-433.94680368,0.00019726,2]
[359794516,1746352244243,-175.91448904,0.00019726,2]
[359794517,1746352244253,-450.0,0.00019726,2]
[359794518,1746352244262,-500.0,0.00019726,2]
[359794519,1746352244272,-450.0,0.00019726,2]
[359794520,1746352244281,-450.0,0.00019726,2]
[359794521,1746352244290,-450.0,0.00019726,2]
[359794522,1746352244299,-450.0,0.00019726,2]
[359794523,1746352244309,-450.0,0.00019726,2]
[359794524,1746352244319,-2479.47,0.00019726,2]
[359794525,1746352244328,-450.0,0.00019726,2]
[359794526,1746352244338,-450.0,0.00019726,2]
[359794527,1746352244347,-450.0,0.00019726,2]
[359794528,1746352244356,-450.0,0.00019726,2]
[359794529,1746352244365,-450.0,0.00019726,2]
[359794530,1746352244374,-1107.34,0.00019726,2]
[359794531,1746352244383,-450.0,0.00019726,2]
[359794532,1746352244393,-450.0,0.00019726,2]
[359794533,1746352244402,-450.0,0.00019726,2]
[359794534,1746352244411,-439.81400919,0.00019726,2]
[359794535,1746352244420,-997.78,0.00019726,2]
[359794536,1746352244429,-450.0,0.00019726,2]
[359794537,1746352244439,-450.0,0.00019726,2]
[359794538,1746352244448,-450.0,0.00019726,2]
[359794539,1746352244457,-450.0,0.00019726,2]
[359794540,1746352244466,-450.0,0.00019726,2]
[359794541,1746352244475,-1000.0,0.0001973,2]
[359794542,1746352244484,-150.0,0.00019732,2]
[359794543,1746352244493,-152.29004398,0.00019735,2]
[359794544,1746352244503,-999.27525446,0.00019748,2]
[359794545,1746352244513,-3221.8702296,0.00019748,2]
[359794546,1746352244522,-500.0,0.00019751,2]
[359794547,1746352244531,-500.0,0.00019752,2]
[359794548,1746352244540,-500.0,0.00019752,2]
[359794549,1746352244549,-500.0,0.00019752,2]
[359794550,1746352244559,-500.0,0.00019752,2]
[359794551,1746352244568,-500.0,0.00019752,2]
[359794552,1746352244577,-634.76086128,0.00019752,2]
[359794553,1746352244587,-500.0,0.00019752,2]
[359794554,1746352244597,-568.5369027,0.00019752,2]
[359794555,1746352244606,-450.0,0.00019753,2]
[359794556,1746352244615,-450.0,0.00019753,2]
[359794557,1746352244624,-450.0,0.00019753,2]
[359794558,1746352244633,-450.0,0.00019753,2]
[359794559,1746352244642,-450.0,0.00019753,2]
[359794560,1746352244651,-450.0,0.00019753,2]
[359794561,1746352244661,-450.0,0.00019753,2]
[359794562,1746352244670,-450.0,0.00019753,2]
[359794563,1746352244679,-450.0,0.00019753,2]
[359794564,1746352244688,-450.0,0.00019753,2]
[359794565,1746352244698,-450.0,0.00019753,2]
[359794566,1746352244707,-450.0,0.00019753,2]
[359794567,1746352244716,-450.0,0.00019753,2]
[359794568,1746352244725,-450.0,0.00019753,2]
[359794569,1746352244734,-450.0,0.00019753,2]
[359794570,1746352244743,-450.0,0.00019753,2]
[359794571,1746352244752,-450.0,0.00019753,2]
[359794572,1746352244761,-450.0,0.00019753,2]
[359794573,1746352244770,-450.0,0.00019753,2]
[359794574,1746352244779,-450.0,0.00019753,2]
[359794575,1746352244789,-450.0,0.00019753,2]
[359794576,1746352244798,-450.0,0.00019753,2]
[359794577,1746352244807,-255.52995698,0.00019753,2]
[359794578,1746352244816,-450.0,0.00019753,2]
[359794579,1746352244826,-450.0,0.00019753,2]
[359794580,1746352244835,-450.0,0.00019753,2]
[359794581,1746352244845,-450.0,0.00019753,2]
[359794582,1746352245001,-450.0,0.00019753,2]
[359794583,1746352245013,-450.0,0.00019753,2]
[359794584,1746352245022,-450.0,0.00019753,2]
[359794585,1746352245032,-450.0,0.00019753,2]
[359794586,1746352245041,-332.78969886,0.00019753,2]
[359794587,1746352245051,-450.0,0.00019753,2]
[359794588,1746352245060,-450.0,0.00019753,2]
[359794589,1746352245069,-450.0,0.00019753,2]
[359794590,1746352245079,-450.0,0.00019753,2]
[359794591,1746352245089,-497.29,0.00019753,2]
[359794592,1746352245099,-486.64,0.00019753,2]
[359794593,1746352245108,-450.0,0.00019753,2]
[359794594,1746352245118,-450.0,0.00019753,2]
[359794595,1746352245128,-450.0,0.00019753,2]
[359794596,1746352245137,-450.0,0.00019753,2]
[359794597,1746352245147,-450.0,0.00019753,2]
[359794598,1746352245156,-450.0,0.00019753,2]
[359794599,1746352245166,-608.69,0.00019753,2]
[359794600,1746352245175,-450.0,0.00019753,2]
[359794601,1746352245185,-450.0,0.00019753,2]
[359794602,1746352245194,-450.0,0.00019753,2]
[359794603,1746352245203,-1138.91,0.00019753,2]
[359794604,1746352245213,-450.0,0.00019753,2]
[359794605,1746352245223,-489.14,0.00019753,2]
[359794606,1746352245232,-1376.72,0.00019753,2]
[359794607,1746352245242,-189.03686147,0.00019753,2]
[359794608,1746352245251,-952.45,0.00019753,2]
[359794609,1746352245261,-450.0,0.00019753,2]
[359794610,1746352245270,-591.25,0.00019753,2]
[359794611,1746352245280,-450.0,0.00019753,2]
[359794612,1746352245290,-523.19,0.00019753,2]
[359794613,1746352245300,-450.0,0.00019753,2]
[359794614,1746352245310,-450.0,0.00019753,2]
[359794615,1746352245320,-450.0,0.00019753,2]
[359794616,1746352245330,-450.0,0.00019753,2]
[359794617,1746352245339,-450.0,0.00019753,2]
[359794618,1746352245349,-469.89,0.00019753,2]
[359794619,1746352245359,-319.86,0.00019753,2]
[359794620,1746352245368,-450.0,0.00019753,2]
[359794621,1746352245378,-276.24,0.00019753,2]
[359794622,1746352245388,-596.83058126,0.00019753,2]
[359794623,1746352245397,-450.0,0.00019753,2]
[359794624,1746352245407,-173.12,0.00019753,2]
[359794625,1746352245416,-323.66,0.00019753,2]
[359794626,1746352245425,-450.0,0.00019753,2]
[359794627,1746352245435,-450.0,0.00019753,2]
[359794628,1746352245444,-450.0,0.00019753,2]
[359794629,1746352245453,-450.0,0.00019753,2]
[359794630,1746352245463,-450.0,0.00019753,2]
[359794631,1746352245472,-496.59,0.00019753,2]
[359794632,1746352245481,-625.19,0.00019753,2]
[359794633,1746352245491,-755.86,0.00019753,2]
[359794634,1746352245500,-877.99,0.00019753,2]
[359794635,1746352245510,-450.0,0.00019753,2]
[359794636,1746352245519,-330.04417946,0.00019753,2]
[359794637,1746352245529,-450.0,0.00019753,2]
[359794638,1746352245539,-450.0,0.00019753,2]
[359794639,1746352245548,-450.0,0.00019753,2]
[359794640,1746352245558,-483.7,0.00019753,2]
[359794641,1746352245568,-543.99617311,0.00019753,2]
[359794642,1746352245578,-450.0,0.00019753,2]
[359794643,1746352245588,-1139.12,0.00019753,2]
[359794644,1746352245598,-450.0,0.00019753,2]
[359794646,1746352245607,-450.0,0.00019753,2]
[359794648,1746352245616,-2437.25,0.00019753,2]
[359794650,1746352245625,-450.0,0.00019753,2]
[359794651,1746352245635,-450.0,0.00019753,2]
[359794652,1746352245644,-450.0,0.00019753,2]
[359794653,1746352245653,-450.0,0.00019753,2]
[359794655,1746352245662,-450.0,0.00019753,2]
[359794656,1746352245671,-450.0,0.00019753,2]
[359794657,1746352245680,-604.74,0.00019753,2]
[359794658,1746352245689,-592.12,0.00019753,2]
[359794659,1746352245699,-2540.54,0.00019753,2]
[359794660,1746352245708,-450.0,0.00019753,2]
[359794661,1746352245717,-2603.81,0.00019753,2]
[359794662,1746352245727,-450.0,0.00019753,2]
[359794663,1746352245737,-450.0,0.00019753,2]
[359794664,1746352245746,-450.0,0.00019753,2]
[359794665,1746352245755,-876.95,0.00019753,2]
[359794666,1746352245765,-537.09,0.00019753,2]
[359794667,1746352245774,-450.0,0.00019753,2]
[359794668,1746352245784,-450.0,0.00019753,2]
[359794669,1746352245794,-450.0,0.00019753,2]
[359794670,1746352245804,-1868.86,0.00019753,2]
[359794671,1746352245813,-450.0,0.00019753,2]
[359794672,1746352245822,-1134.1,0.00019753,2]
[359794673,1746352245832,-450.0,0.00019753,2]
[359794674,1746352245842,-45283.39,0.00019753,2]
[359794675,1746352245851,-843.32,0.00019753,2]
[359794676,1746352245861,-567.59,0.00019753,2]
[359794677,1746352245871,-450.0,0.00019753,2]
[359794678,1746352245880,-615.0,0.00019753,2]
[359794679,1746352245890,-457.65,0.00019753,2]
[359794680,1746352245899,-450.0,0.00019753,2]
[359794681,1746352245908,-450.0,0.00019753,2]
[359794682,1746352245917,-2417.98,0.00019753,2]
[359794683,1746352245927,-450.0,0.00019753,2]
[359794684,1746352245937,-450.0,0.00019753,2]
[359794685,1746352245946,-450.0,0.00019753,2]
[359794686,1746352245956,-516.09,0.00019753,2]
[359794687,1746352245969,-11423.65,0.00019753,2]
[359794688,1746352245979,-603.29,0.00019753,2]
[359794689,1746352245988,-450.0,0.00019753,2]
[359794690,1746352245998,-3131.26,0.00019753,2]
[359794691,1746352246008,-450.0,0.00019753,2]
[359794692,1746352246018,-450.0,0.00019753,2]
[359794693,1746352246027,-747.61,0.00019753,2]
[359794694,1746352246037,-450.0,0.00019753,2]
[359794695,1746352246046,-6307.22,0.00019753,2]
[359794696,1746352246057,-450.0,0.00019753,2]
[359794697,1746352246067,-450.0,0.00019753,2]
[359794698,1746352246077,-450.0,0.00019753,2]
[359794699,1746352246086,-745.62,0.00019753,2]
[359794700,1746352246096,-457.80942935,0.00019753,2]
[359794701,1746352246106,-903.85,0.00019753,2]
[359794702,1746352246115,-2540.47,0.00019753,2]
[359794703,1746352246126,-55372.95,0.00019753,2]
[359794704,1746352246135,-450.0,0.00019753,2]
[359794705,1746352246145,-450.0,0.00019753,2]
[359794706,1746352246154,-450.0,0.00019753,2]
[359794707,1746352246164,-450.0,0.00019753,2]
[359794708,1746352246174,-450.0,0.00019753,2]
[359794709,1746352246184,-450.0,0.00019753,2]
[359794710,1746352246193,-450.0,0.00019753,2]
[359794711,1746352246203,-450.0,0.00019753,2]
[359794712,1746352246213,-2479.47,0.00019753,2]
[359794713,1746352246222,-450.0,0.00019753,2]
[359794714,1746352246232,-450.0,0.00019753,2]
[359794715,1746352246241,-450.0,0.00019753,2]
[359794716,1746352246251,-450.0,0.00019753,2]
[359794717,1746352246261,-450.0,0.00019753,2]
[359794718,1746352246271,-1107.34,0.00019753,2]
[359794719,1746352246281,-554.99,0.00019753,2]
[359794720,1746352246291,-450.0,0.00019753,2]
[359794722,1746352246300,-450.0,0.00019753,2]
[359794723,1746352246310,-997.78,0.00019753,2]
[359794724,1746352246319,-450.0,0.00019753,2]
[359794725,1746352246329,-450.0,0.00019753,2]
[359794726,1746352246339,-450.0,0.00019753,2]
[359794727,1746352246349,-1000.0,0.00019762,2]
[359794729,1746352246359,-171.75448873,0.00019766,2]
[359794730,1746352246369,-500.0,0.00019773,2]
[359794731,1746352246379,-500.0,0.00019773,2]
[359794732,1746352246389,-500.0,0.00019773,2]
[359794733,1746352246399,-633.2360187,0.00019773,2]
[359794735,1746352246409,-500.0,0.00019773,2]
[359794736,1746352246418,-500.0,0.00019773,2]
[359794738,1746352246428,-500.0,0.00019773,2]
[359794740,1746352246437,-500.0,0.00019773,2]
[359794742,1746352246447,-508.22139072,0.00019773,2]
[359794744,1746352246456,-505.279035,0.00019773,2]
[359794747,1746352246466,-500.0,0.00019773,2]
[359794749,1746352246475,-150.0,0.00019776,2]
[359794751,1746352246485,-999.27525446,0.00019778,2]
[359794753,1746352246494,-3221.8702296,0.00019778,2]
[359794755,1746352246503,-540.45924149,0.00019779,2]
[359794757,1746352246512,-500.0,0.00019779,2]
[359794759,1746352246522,-627.03329422,0.00019779,2]
[359794761,1746352246531,-500.0,0.00019779,2]
[359794762,1746352246540,-502.943724,0.00019779,2]
[359794763,1746352246549,-506.56842742,0.00019779,2]
[359794764,1746352246559,-538.34619533,0.00019779,2]
[359794765,1746352246568,-450.0,0.0001978,2]
[359794766,1746352246578,-278.43015149,0.0001978,2]
[359794767,1746352246587,-450.0,0.0001978,2]
[359794768,1746352246596,-410.25982237,0.0001978,2]
[359794769,1746352246606,-450.0,0.0001978,2]
[359794770,1746352246615,-450.0,0.0001978,2]
[359794771,1746352246625,-450.0,0.0001978,2]
[359794772,1746352246634,-450.0,0.0001978,2]
[359794773,1746352246643,-450.0,0.0001978,2]
[359794774,1746352246653,-450.0,0.0001978,2]
[359794775,1746352246663,-450.0,0.0001978,2]
[359794776,1746352246672,-450.0,0.0001978,2]
[359794777,1746352246682,-450.0,0.0001978,2]
[359794778,1746352246691,-450.0,0.0001978,2]
[359794779,1746352246700,-450.0,0.0001978,2]
[359794780,1746352246710,-450.0,0.0001978,2]
[359794781,1746352246719,-450.0,0.0001978,2]
[359794782,1746352246730,-450.0,0.0001978,2]
[359794783,1746352246739,-450.0,0.0001978,2]
[359794784,1746352246748,-450.0,0.0001978,2]
[359794785,1746352246757,-450.0,0.0001978,2]
[359794786,1746352246767,-450.0,0.0001978,2]
[359794787,1746352246776,-450.0,0.0001978,2]
[359794788,1746352246785,-450.0,0.0001978,2]
[359794789,1746352246795,-450.0,0.0001978,2]
[359794790,1746352246804,-450.0,0.0001978,2]
[359794791,1746352246813,-497.29,0.0001978,2]
[359794792,1746352246823,-486.64,0.0001978,2]
[359794793,1746352246832,-450.0,0.0001978,2]
[359794794,1746352246842,-450.0,0.0001978,2]
[359794795,1746352246851,-450.0,0.0001978,2]
[359794796,1746352246861,-450.0,0.0001978,2]
[359794797,1746352246871,-450.0,0.0001978,2]
[359794798,1746352246880,-608.69,0.0001978,2]
[359794799,1746352246890,-450.0,0.0001978,2]
[359794800,1746352246899,-450.0,0.0001978,2]
[359794801,1746352246908,-1138.91,0.0001978,2]
[359794802,1746352246918,-450.0,0.0001978,2]
[359794803,1746352246927,-489.14,0.0001978,2]
[359794804,1746352246937,-1376.72,0.0001978,2]
[359794805,1746352246946,-952.45,0.0001978,2]
[359794806,1746352246955,-450.0,0.0001978,2]
[359794807,1746352246965,-591.25,0.0001978,2]
[359794808,1746352246976,-523.19,0.0001978,2]
[359794809,1746352246986,-450.0,0.0001978,2]
[359794810,1746352246996,-450.0,0.0001978,2]
[359794811,1746352247005,-450.0,0.0001978,2]
[359794812,1746352247014,-450.0,0.0001978,2]
[359794813,1746352247024,-426.36,0.0001978,2]
[359794814,1746352247034,-420.41,0.0001978,2]
[359794815,1746352247043,-447.09,0.0001978,2]
[359794816,1746352247053,-290.65,0.0001978,2]
[359794817,1746352247063,-450.0,0.0001978,2]
[359794818,1746352247072,-450.0,0.0001978,2]
[359794819,1746352247082,-252.72,0.0001978,2]
[359794820,1746352247091,-496.59,0.0001978,2]
[359794821,1746352247101,-625.19,0.0001978,2]
[359794822,1746352247110,-755.86,0.0001978,2]
[359794823,1746352247120,-877.99,0.0001978,2]
[359794824,1746352247129,-255.59,0.0001978,2]
[359794825,1746352247139,-450.0,0.0001978,2]
[359794826,1746352247148,-450.0,0.0001978,2]
[359794827,1746352247158,-450.0,0.0001978,2]
[359794828,1746352247167,-483.7,0.0001978,2]
[359794829,1746352247177,-450.0,0.0001978,2]
[359794830,1746352247186,-1139.12,0.0001978,2]
[359794831,1746352247196,-450.0,0.0001978,2]
[359794832,1746352247205,-2437.25,0.0001978,2]
[359794833,1746352247214,-450.0,0.0001978,2]
[359794834,1746352247224,-450.0,0.0001978,2]
[359794835,1746352247234,-465.22872177,0.0001978,2]
[359794836,1746352247243,-450.0,0.0001978,2]
[359794837,1746352247253,-450.0,0.0001978,2]
[359794838,1746352247263,-216.1,0.0001978,2]
[359794839,1746352247272,-604.74,0.0001978,2]
[359794840,1746352247281,-592.12,0.0001978,2]
[359794841,1746352247291,-2540.54,0.0001978,2]
[359794842,1746352247300,-450.0,0.0001978,2]
[359794843,1746352247309,-2603.81,0.0001978,2]
[359794844,1746352247319,-450.0,0.0001978,2]
[359794845,1746352247329,-450.0,0.0001978,2]
[359794846,1746352247338,-450.0,0.0001978,2]
[359794847,1746352247348,-876.95,0.0001978,2]
[359794848,1746352247357,-537.09,0.0001978,2]
[359794849,1746352247366,-450.0,0.0001978,2]
[359794850,1746352247376,-450.0,0.0001978,2]
[359794851,1746352247385,-450.0,0.0001978,2]
[359794852,1746352247436,-1868.86,0.0001978,2]
[359794853,1746352247445,-237.04,0.0001978,2]
[359794854,1746352247455,-1134.1,0.0001978,2]
[359794855,1746352247464,-512.22945768,0.0001978,2]
[359794856,1746352247473,-45283.39,0.0001978,2]
[359794857,1746352247482,-843.32,0.0001978,2]
[359794858,1746352247491,-450.0,0.0001978,2]
[359794859,1746352247500,-615.0,0.0001978,2]
[359794860,1746352247509,-457.65,0.0001978,2]
[359794861,1746352247520,-450.0,0.0001978,2]
[359794862,1746352247529,-450.0,0.0001978,2]
[359794863,1746352247538,-2417.98,0.0001978,2]
[359794864,1746352247547,-450.0,0.0001978,2]
[359794865,1746352247557,-450.0,0.0001978,2]
[359794866,1746352247566,-450.0,0.0001978,2]
[359794867,1746352247575,-516.09,0.0001978,2]
[359794868,1746352247584,-11423.65,0.0001978,2]
[359794869,1746352247594,-450.0,0.0001978,2]
[359794870,1746352247604,-603.29,0.0001978,2]
[359794871,1746352247614,-3131.26,0.0001978,2]
[359794872,1746352247623,-150.22099074,0.0001978,2]
[359794873,1746352247632,-747.61,0.0001978,2]
[359794874,1746352247642,-450.0,0.0001978,2]
[359794875,1746352247654,-6307.22,0.0001978,2]
[359794876,1746352247664,-450.0,0.0001978,2]
[359794877,1746352247673,-450.0,0.0001978,2]
[359794878,1746352247682,-450.0,0.0001978,2]
[359794879,1746352247692,-745.62,0.0001978,2]
[359794880,1746352247701,-903.85,0.0001978,2]
[359794881,1746352247710,-2540.47,0.0001978,2]
[359794882,1746352247720,-55372.95,0.0001978,2]
[359794883,1746352247730,-450.0,0.0001978,2]
[359794884,1746352247740,-450.0,0.0001978,2]
[359794885,1746352247749,-450.0,0.0001978,2]
[359794886,1746352247759,-450.0,0.0001978,2]
[359794887,1746352247769,-450.0,0.0001978,2]
[359794888,1746352247778,-450.0,0.0001978,2]
[359794889,1746352247788,-450.0,0.0001978,2]
[359794890,1746352247798,-450.0,0.0001978,2]
[359794891,1746352247807,-2479.47,0.0001978,2]
[359794892,1746352247816,-450.0,0.0001978,2]
[359794893,1746352247826,-450.0,0.0001978,2]
[359794894,1746352247835,-450.0,0.0001978,2]
[359794895,1746352247844,-450.0,0.0001978,2]
[359794896,1746352247853,-450.0,0.0001978,2]
[359794897,1746352247863,-1107.34,0.0001978,2]
[359794898,1746352247872,-450.0,0.0001978,2]
[359794899,1746352247881,-450.0,0.0001978,2]
[359794900,1746352247891,-997.78,0.0001978,2]
[359794901,1746352247900,-450.0,0.0001978,2]
[359794902,1746352247909,-450.0,0.0001978,2]
[359794903,1746352247918,-450.0,0.0001978,2]
[359794904,1746352247927,-150.0,0.00019795,2]
[359794905,1746352247936,-155.5769965,0.00019799,2]
[359794906,1746352247946,-1131.57860003,0.000198,2]
[359794907,1746352247956,-459.8,0.00019807,2]
[359794908,1746352247966,-500.0,0.00019807,2]
[359794909,1746352247977,-450.0,0.00019808,2]
[359794910,1746352247987,-233.65870172,0.00019808,2]
[359794911,1746352247996,-450.0,0.00019808,2]
[359794912,1746352248006,-450.0,0.00019808,2]
[359794913,1746352248015,-450.0,0.00019808,2]
[359794914,1746352248024,-450.0,0.00019808,2]
[359794915,1746352248034,-450.0,0.00019808,2]
[359794916,1746352248043,-450.0,0.00019808,2]
[359794917,1746352248053,-244.04711238,0.00019808,2]
[359794918,1746352248062,-450.0,0.00019808,2]
[359794919,1746352248072,-450.0,0.00019808,2]
[359794920,1746352248081,-450.0,0.00019808,2]
[359794921,1746352248091,-450.0,0.00019808,2]
[359794922,1746352248100,-299.1856,0.00019808,2]
[359794923,1746352248109,-450.0,0.00019808,2]
[359794924,1746352248118,-450.0,0.00019808,2]
[359794925,1746352248128,-450.0,0.00019808,2]
[359794926,1746352248138,-450.0,0.00019808,2]
[359794927,1746352248148,-450.0,0.00019808,2]
[359794928,1746352248158,-450.0,0.00019808,2]
[359794929,1746352248168,-450.0,0.00019808,2]
[359794930,1746352248178,-450.0,0.00019808,2]
[359794931,1746352248188,-450.0,0.00019808,2]
[359794932,1746352248198,-497.29,0.00019808,2]
[359794933,1746352248207,-486.64,0.00019808,2]
[359794934,1746352248217,-450.0,0.00019808,2]
[359794935,1746352248227,-450.0,0.00019808,2]
[359794936,1746352248237,-450.0,0.00019808,2]
[359794937,1746352248247,-528.32079725,0.00019808,2]
[359794938,1746352248256,-450.0,0.00019808,2]
[359794939,1746352248266,-608.69,0.00019808,2]
[359794940,1746352248275,-450.0,0.00019808,2]
[359794941,1746352248284,-450.0,0.00019808,2]
[359794942,1746352248294,-1138.91,0.00019808,2]
[359794943,1746352248304,-450.0,0.00019808,2]
[359794944,1746352248314,-489.14,0.00019808,2]
[359794945,1746352248324,-1376.72,0.00019808,2]
[359794946,1746352248334,-952.45,0.00019808,2]